[Event "II Open Internacional Ateneo Marítimo (60 Aniversario)"]
[Site "C/La reina 68 (Valencia), Spain"]
[Date "2018.09.15"]
[Round "2.5"]
[White "Balada Moreno, Jose Luis"]
[Black "Diaz Velandia, Jose Manuel"]
[Result "0-1"]
[TimeControl "7m+3s por jugada"]
[WhiteFideId "2214962"]
[BlackFideId "3901939"]
[WhiteElo "2074"]
[BlackElo "2368"]

1. e4 {[%clk 00:07:04]} {[%emt 00:00:09]} c6 {[%clk 00:07:06]} 2. d3 {[%clk
00:07:05]} d5 {[%clk 00:07:07]} 3. Nd2 {[%clk 00:07:06]} dxe4 {[%clk 00:07:09]}
4. dxe4 {[%clk 00:07:08]} {[%emt 00:00:09]} g6 {[%clk 00:07:08]} {[%emt
00:00:03]} 5. Ngf3 {[%clk 00:07:07]} Bg7 {[%clk 00:07:10]} {[%emt 00:00:04]} 6.
g3 {[%clk 00:07:08]} Nf6 {[%clk 00:07:11]} {[%emt 00:00:04]} 7. Bg2 {[%clk
00:07:09]} O-O {[%clk 00:07:12]} {[%emt 00:00:04]} 8. O-O {[%clk 00:07:10]} Bg4
{[%clk 00:07:13]} {[%emt 00:00:08]} 9. h3 {[%clk 00:07:05]} {[%emt 00:00:13]}
Bxf3 {[%clk 00:07:14]} 10. Qxf3 {[%clk 00:07:03]} Nbd7 {[%clk 00:07:15]} 11.
Kh1 {[%clk 00:06:52]} {[%emt 00:00:08]} Qc7 {[%clk 00:07:08]} {[%emt 00:00:11]}
12. Nc4 {[%clk 00:06:40]} {[%emt 00:00:14]} b5 {[%clk 00:07:02]} {[%emt
00:00:11]} 13. Ne3 {[%clk 00:06:39]} {[%emt 00:00:09]} Rad8 {[%clk 00:06:56]}
{[%emt 00:00:06]} 14. Qe2 {[%clk 00:06:23]} {[%emt 00:00:24]} Nc5 {[%clk
00:06:56]} 15. Ng4 {[%clk 00:06:12]} {[%emt 00:00:11]} Nxg4 {[%clk 00:06:46]}
{[%emt 00:00:13]} 16. Qxg4 {[%clk 00:06:10]} {[%emt 00:00:07]} a5 {[%clk
00:06:37]} {[%emt 00:00:16]} 17. f4 {[%clk 00:05:58]} {[%emt 00:00:12]} a4
{[%clk 00:06:38]} 18. a3 {[%clk 00:05:46]} {[%emt 00:00:17]} Nb7 {[%clk
00:06:38]} 19. f5 {[%clk 00:05:26]} {[%emt 00:00:47]} Na5 {[%clk 00:06:34]} 20.
Rb1 {[%clk 00:04:49]} {[%emt 00:00:21]} Nc4 {[%clk 00:06:25]} {[%emt 00:00:13]}
21. Bf4 {[%clk 00:03:51]} {[%emt 00:00:59]} Qc8 {[%clk 00:06:21]} {[%emt
00:00:13]} 22. Qe2 {[%clk 00:03:40]} {[%emt 00:00:07]} Bxb2 {[%clk 00:05:58]}
{[%emt 00:00:40]} 23. Rxb2 {[%clk 00:03:34]} Nxb2 {[%clk 00:05:58]} {[%emt
00:00:11]} 24. Bh6 {[%clk 00:03:26]} {[%emt 00:00:11]} Nc4 {[%clk 00:05:54]} 25.
e5 {[%clk 00:03:15]} {[%emt 00:00:09]} Qc7 {[%clk 00:05:04]} {[%emt 00:00:53]}
26. e6 {[%clk 00:02:58]} {[%emt 00:00:26]} Qe5 {[%clk 00:04:36]} {[%emt
00:00:25]} 27. Qg4 {[%clk 00:02:45]} {[%emt 00:00:18]} Ne3 {[%clk 00:03:37]}
{[%emt 00:01:25]} 28. Qe2 {[%clk 00:02:42]} {[%emt 00:00:04]} Nc4 {[%clk
00:03:30]} 29. Qg4 {[%clk 00:02:39]} {[%emt 00:00:04]} Rd4 {[%clk 00:03:25]}
{[%emt 00:00:04]} 30. exf7+ {[%clk 00:02:03]} {[%emt 00:00:34]} Rxf7 {[%clk
00:03:26]} {[%emt 00:00:03]} 31. Bf4 {[%clk 00:02:04]} Rxf4 {[%clk 00:03:28]}
{[%emt 00:00:04]} 32. gxf4 {[%clk 00:02:05]} {[%emt 00:00:04]} Qxf5 {[%clk
00:03:25]} {[%emt 00:00:23]} 33. Bxc6 {[%clk 00:02:05]} Kg7 {[%clk 00:03:17]}
34. Qf3 {[%clk 00:01:50]} {[%emt 00:00:12]} Rf6 {[%clk 00:03:06]} {[%emt
00:00:11]} 35. Be4 {[%clk 00:01:50]} {[%emt 00:00:11]} Nd2 {[%clk 00:03:07]} 36.
Bxf5 {[%clk 00:01:51]} Nxf3 {[%clk 00:03:09]} 37. Bd7 {[%clk 00:01:51]} Nd2
{[%clk 00:02:51]} {[%emt 00:00:21]} 38. Rd1 {[%clk 00:01:48]} {[%emt 00:00:09]}
Ne4 {[%clk 00:02:43]} {[%emt 00:00:11]} 39. Re1 {[%clk 00:01:41]} {[%emt
00:00:08]} Rxf4 {[%clk 00:02:34]} {[%emt 00:00:11]} 40. Bxb5 {[%clk 00:01:40]}
{[%emt 00:01:13]} Kf6 {[%clk 00:02:34]} 41. Bxa4 {[%clk 00:01:39]} Ng3+ {[%clk
00:02:26]} 42. Kg2 {[%clk 00:01:38]} Rxa4 {[%clk 00:02:27]} 43. Kxg3 {[%clk
00:01:38]} Rxa3+ {[%clk 00:02:29]} 44. Kg2 {[%clk 00:01:36]} Rc3 {[%clk
00:02:31]} 45. Rc1 {[%clk 00:01:38]} e5 {[%clk 00:02:33]} 0-1

[Event "II Open Internacional Ateneo Marítimo (60 Aniversario)"]
[Site "C/La reina 68 (Valencia), Spain"]
[Date "2018.09.15"]
[Round "2.6"]
[White "Fenollar Jorda, Manuel"]
[Black "Moreto Quintana, Alex"]
[Result "1-0"]
[TimeControl "7m+3s por jugada"]
[WhiteFideId "2217104"]
[BlackFideId "2258390"]
[WhiteElo "2342"]
[BlackElo "2112"]

1. d4 {[%clk 00:07:03]} d5 {[%clk 00:07:03]} {[%emt 00:00:40]} 2. Nf3 {[%clk
00:07:03]} Nf6 {[%clk 00:06:59]} 3. e3 {[%clk 00:07:03]} Bf5 {[%clk 00:06:56]}
4. c4 {[%clk 00:06:59]} {[%emt 00:00:04]} e6 {[%clk 00:06:56]} 5. Nc3 {[%clk
00:06:41]} {[%emt 00:00:03]} c6 {[%clk 00:06:54]} {[%emt 00:00:04]} 6. Bd3
{[%clk 00:06:18]} {[%emt 00:00:21]} Bxd3 {[%clk 00:06:39]} {[%emt 00:00:45]} 7.
Qxd3 {[%clk 00:06:18]} Nbd7 {[%clk 00:06:39]} 8. O-O {[%clk 00:06:16]} Be7
{[%clk 00:06:19]} {[%emt 00:00:07]} 9. Rb1 {[%clk 00:06:09]} {[%emt 00:00:17]}
O-O {[%clk 00:06:19]} 10. b4 {[%clk 00:06:09]} Qc7 {[%clk 00:06:15]} {[%emt
00:00:08]} 11. b5 {[%clk 00:05:42]} {[%emt 00:00:25]} Rac8 {[%clk 00:06:09]}
{[%emt 00:00:12]} 12. Bd2 {[%clk 00:05:28]} {[%emt 00:00:14]} dxc4 {[%clk
00:05:50]} {[%emt 00:00:22]} 13. Qxc4 {[%clk 00:05:17]} {[%emt 00:00:33]} c5
{[%clk 00:05:50]} 14. Rfc1 {[%clk 00:03:29]} {[%emt 00:01:33]} cxd4 {[%clk
00:05:25]} {[%emt 00:00:32]} 15. Qxc7 {[%clk 00:03:26]} {[%emt 00:00:29]} Rxc7
{[%clk 00:05:25]} 16. Nxd4 {[%clk 00:03:25]} {[%emt 00:00:04]} Rfc8 {[%clk
00:03:20]} {[%emt 00:01:42]} 17. Nce2 {[%clk 00:03:21]} {[%emt 00:00:10]} e5
{[%clk 00:03:02]} {[%emt 00:00:22]} 18. Nf5 {[%clk 00:03:07]} {[%emt 00:00:11]}
Ba3 {[%clk 00:03:02]} {[%emt 00:00:16]} 19. Rd1 {[%clk 00:02:39]} {[%emt
00:00:19]} g6 {[%clk 00:03:02]} {[%emt 00:00:21]} 20. Nfg3 {[%clk 00:02:24]}
{[%emt 00:00:09]} h5 {[%clk 00:03:02]} 21. Rb3 {[%clk 00:02:19]} {[%emt
00:00:03]} Bf8 {[%clk 00:02:57]} {[%emt 00:00:35]} 22. f3 {[%clk 00:02:05]}
{[%emt 00:00:05]} Rc2 {[%clk 00:02:37]} {[%emt 00:00:04]} 23. Rc3 {[%clk
00:01:03]} {[%emt 00:01:33]} R8xc3 {[%clk 00:02:05]} {[%emt 00:00:27]} 24. Nxc3
{[%clk 00:01:03]} Nb6 {[%clk 00:01:57]} {[%emt 00:00:10]} 25. Nce4 {[%clk
00:00:36]} {[%emt 00:00:14]} Nxe4 {[%clk 00:01:35]} {[%emt 00:00:39]} 26. Nxe4
{[%clk 00:00:36]} Rxa2 {[%clk 00:01:35]} 27. Bc3 {[%clk 00:00:35]} Bg7 {[%clk
00:00:57]} {[%emt 00:00:57]} 28. Rd8+ {[%clk 00:00:35]} Kh7 {[%clk 00:00:57]}
29. Ng5+ {[%clk 00:00:35]} Kh6 {[%clk 00:00:57]} 30. Nxf7+ {[%clk 00:00:35]}
{[%emt 00:00:07]} Kh7 {[%clk 00:00:57]} 31. Bxe5 {[%clk 00:00:22]} Nc4 {[%clk
00:00:43]} {[%emt 00:00:14]} 32. Ng5+ {[%clk 00:00:14]} {[%emt 00:00:37]} Kh6
{[%clk 00:00:43]} 33. Bf4 {[%clk 00:00:14]} Rd2 {[%clk 00:00:13]} {[%emt
00:01:13]} 34. Nf7+ {[%clk 00:00:13]} Kh7 {[%clk 00:00:13]} 35. Ng5+ {[%clk
00:00:13]} Kh6 {[%clk 00:00:13]} 36. Nf7+ {[%clk 00:00:09]} Kh7 {[%clk
00:00:13]} 37. Ng5+ {[%clk 00:00:09]} Kh6 {[%clk 00:00:13]} 38. Rb8 {[%clk
00:00:08]} Rd7 {[%clk 00:00:09]} 39. e4 {[%clk 00:00:08]} Bd4+ 40. Kf1 Bb6 1-0

[Event "II Open Internacional Ateneo Marítimo (60 Aniversario)"]
[Site "C/La reina 68 (Valencia), Spain"]
[Date "2018.09.15"]
[Round "2.7"]
[White "Macias Pino, Diego"]
[Black "Valmana Canto, Jaime"]
[Result "0-1"]
[TimeControl "7m+3s por jugada"]
[WhiteFideId "24529133"]
[BlackFideId "2268990"]
[WhiteElo "2002"]
[BlackElo "2340"]

1. e4 {[%clk 00:07:04]} e6 {[%clk 00:07:03]} {[%emt 00:00:07]} 2. d4 {[%clk
00:07:05]} d5 {[%clk 00:07:05]} 3. Nd2 {[%clk 00:07:07]} c5 {[%clk 00:07:06]}
{[%emt 00:00:04]} 4. exd5 {[%clk 00:07:08]} Qxd5 {[%clk 00:07:07]} {[%emt
00:00:25]} 5. dxc5 {[%clk 00:07:10]} Nf6 {[%clk 00:06:59]} 6. Ngf3 {[%clk
00:07:08]} Qxc5 {[%clk 00:07:01]} 7. Bd3 {[%clk 00:07:06]} Qc7 {[%clk
00:06:54]} {[%emt 00:00:24]} 8. O-O {[%clk 00:07:05]} Nbd7 {[%clk 00:06:55]} 9.
Re1 {[%clk 00:07:05]} Be7 {[%clk 00:06:25]} {[%emt 00:01:33]} 10. Nf1 {[%clk
00:07:06]} Nc5 {[%clk 00:06:21]} 11. Bb5+ {[%clk 00:07:00]} Bd7 {[%clk
00:06:22]} 12. Bxd7+ {[%clk 00:07:00]} Qxd7 {[%clk 00:06:19]} 13. Ng3 {[%clk
00:06:55]} Qxd1 {[%clk 00:05:58]} {[%emt 00:00:04]} 14. Rxd1 {[%clk 00:06:57]}
Nd5 {[%clk 00:05:48]} {[%emt 00:00:05]} 15. a3 {[%clk 00:06:43]} {[%emt
00:01:03]} O-O-O {[%clk 00:04:50]} {[%emt 00:00:16]} 16. Ne5 {[%clk 00:05:52]}
{[%emt 00:00:55]} Rhf8 {[%clk 00:04:51]} 17. Nd3 {[%clk 00:05:15]} {[%emt
00:00:40]} Nb6 {[%clk 00:04:02]} {[%emt 00:00:50]} 18. Be3 {[%clk 00:04:18]}
{[%emt 00:01:07]} Nxd3 {[%clk 00:04:02]} 19. Rxd3 {[%clk 00:04:20]} Rxd3 {[%clk
00:04:03]} {[%emt 00:00:11]} 20. cxd3 {[%clk 00:04:22]} Nd5 {[%clk 00:03:57]}
21. Kf1 {[%clk 00:04:00]} {[%emt 00:00:27]} Kd7 {[%clk 00:03:39]} {[%emt
00:00:38]} 22. Rc1 {[%clk 00:03:39]} {[%emt 00:00:10]} b6 {[%clk 00:03:20]}
{[%emt 00:00:22]} 23. Ke2 {[%clk 00:03:34]} {[%emt 00:00:24]} f5 {[%clk
00:02:58]} {[%emt 00:00:04]} 24. f4 {[%clk 00:02:15]} {[%emt 00:01:20]} g5
{[%clk 00:02:06]} {[%emt 00:01:15]} 25. Kf3 {[%clk 00:02:07]} gxf4 {[%clk
00:01:13]} {[%emt 00:00:53]} 26. Bxf4 {[%clk 00:02:05]} Nxf4 {[%clk 00:01:14]}
{[%emt 00:00:04]} 27. Kxf4 {[%clk 00:02:07]} {[%emt 00:00:12]} Rg8 {[%clk
00:01:16]} 28. Kf3 {[%clk 00:01:59]} Bd6 {[%clk 00:01:14]} {[%emt 00:00:13]} 29.
Ne2 {[%clk 00:01:57]} h5 {[%clk 00:01:09]} {[%emt 00:00:14]} 30. g3 {[%clk
00:01:59]} h4 {[%clk 00:01:04]} {[%emt 00:00:07]} 31. Rc4 {[%clk 00:01:40]}
{[%emt 00:00:13]} hxg3 {[%clk 00:01:03]} {[%emt 00:00:12]} 32. hxg3 {[%clk
00:01:42]} Rh8 {[%clk 00:00:59]} {[%emt 00:00:03]} 33. Kg2 {[%clk 00:01:44]} b5
{[%clk 00:00:59]} {[%emt 00:00:22]} 34. Rc1 {[%clk 00:01:40]} Be5 {[%clk
00:00:53]} 35. d4 {[%clk 00:01:29]} {[%emt 00:00:09]} Bd6 {[%clk 00:00:53]}
{[%emt 00:00:13]} 36. Nc3 {[%clk 00:01:29]} a6 {[%clk 00:00:54]} {[%emt
00:00:07]} 37. Rf1 {[%clk 00:01:30]} Rg8 {[%clk 00:00:54]} 38. Ne2 {[%clk
00:01:29]} {[%emt 00:00:04]} Kc6 {[%clk 00:00:45]} {[%emt 00:00:06]} 39. Rc1+
{[%clk 00:00:50]} {[%emt 00:00:41]} Kd5 {[%clk 00:00:42]} {[%emt 00:00:16]} 40.
Kf3 {[%clk 00:00:51]} Rg4 {[%clk 00:00:24]} {[%emt 00:00:17]} 41. Rc2 {[%clk
00:00:35]} {[%emt 00:00:23]} Rg7 {[%clk 00:00:14]} {[%emt 00:00:28]} 42. Rc3
{[%clk 00:00:06]} {[%emt 00:00:07]} Bc7 {[%clk 00:00:14]} {[%emt 00:00:20]} 43.
Rc1 {[%clk 00:00:06]} Bb6 {[%clk 00:00:15]} 44. Ke3 {[%clk 00:00:07]} Kd6
{[%clk 00:00:11]} {[%emt 00:01:15]} 45. Kd3 {[%clk 00:00:07]} Rg4 {[%clk
00:00:12]} 46. Rg1 {[%clk 00:00:08]} Kd7 {[%clk 00:00:13]} 47. Rg2 {[%clk
00:00:09]} Bc7 {[%clk 00:00:14]} 48. Rg1 {[%clk 00:00:11]} Bd6 {[%clk
00:00:14]} 49. b4 {[%clk 00:00:08]} Bc7 {[%clk 00:00:14]} 50. Rg2 {[%clk
00:00:10]} f4 {[%clk 00:00:15]} 51. Rf2 {[%clk 00:00:10]} fxg3 {[%clk
00:00:14]} 52. Rf7+ {[%clk 00:00:12]} Kc6 {[%clk 00:00:09]} 53. Rf6 {[%clk
00:00:13]} Kd7 {[%clk 00:00:09]} 54. Rf7+ {[%clk 00:00:15]} Kd8 {[%clk
00:00:11]} 55. Rf8+ {[%clk 00:00:17]} Ke7 {[%clk 00:00:13]} 56. Rc8 {[%clk
00:00:18]} Kd7 {[%clk 00:00:12]} 57. Ra8 {[%clk 00:00:18]} g2 {[%clk 00:00:13]}
58. Rxa6 {[%clk 00:00:15]} g1=Q {[%clk 00:00:12]} {[%emt 00:00:17]} 59. Nxg1
{[%clk 00:00:17]} Rxg1 {[%clk 00:00:13]} 60. a4 {[%clk 00:00:19]} bxa4 {[%clk
00:00:05]} {[%emt 00:00:11]} 61. Rxa4 {[%clk 00:00:21]} Kc6 {[%clk 00:00:05]}
62. Ra7 {[%clk 00:00:15]} Rg3+ {[%clk 00:00:06]} {[%emt 00:00:06]} 63. Kc4
{[%clk 00:00:17]} Rg4 {[%clk 00:00:07]} 64. Ra6+ {[%clk 00:00:18]} Bb6 {[%clk
00:00:09]} {[%emt 00:00:08]} 65. b5+ {[%clk 00:00:21]} Kb7 {[%clk 00:00:11]} 66.
Ra1 {[%clk 00:00:22]} {[%emt 00:00:04]} Rxd4+ {[%clk 00:00:12]} 67. Kc3 {[%clk
00:00:24]} e5 {[%clk 00:00:14]} 68. Re1 {[%clk 00:00:26]} e4 {[%clk 00:00:11]}
{[%emt 00:00:05]} 69. Rh1 {[%clk 00:00:25]} {[%emt 00:00:04]} Rd3+ {[%clk
00:00:12]} {[%emt 00:00:08]} 70. Kc4 {[%clk 00:00:24]} Rd7 {[%clk 00:00:12]} 71.
Re1 {[%clk 00:00:24]} {[%emt 00:00:07]} e3 {[%clk 00:00:13]} {[%emt 00:00:03]}
72. Kc3 {[%clk 00:00:26]} Kc7 {[%clk 00:00:12]} 73. Kc4 {[%clk 00:00:27]} Kd8
{[%clk 00:00:14]} {[%emt 00:00:07]} 74. Re2 {[%clk 00:00:19]} {[%emt 00:00:06]}
Ke7 {[%clk 00:00:14]} {[%emt 00:00:07]} 75. Kc3 {[%clk 00:00:21]} {[%emt
00:00:06]} Ke6 {[%clk 00:00:17]} 76. Kc2 {[%clk 00:00:23]} Ke5 {[%clk
00:00:18]} 77. Re1 {[%clk 00:00:25]} Ke4 {[%clk 00:00:20]} 78. Rh1 {[%clk
00:00:27]} e2 {[%clk 00:00:20]} 79. Rh4+ {[%clk 00:00:28]} {[%emt 00:00:06]}
Kf3 {[%clk 00:00:21]} 80. Rh3+ {[%clk 00:00:27]} {[%emt 00:00:04]} Kg2 {[%clk
00:00:21]} {[%emt 00:00:10]} 81. Re3 {[%clk 00:00:27]} Bxe3 {[%clk 00:00:22]}
0-1

[Event "II Open Internacional Ateneo Marítimo (60 Aniversario)"]
[Site "C/La reina 68 (Valencia), Spain"]
[Date "2018.09.15"]
[Round "3.1"]
[White "Plaskett, H James"]
[Black "Insa Alfonso, Pablo"]
[Result "1-0"]
[TimeControl "7m+3s por jugada"]
[WhiteFideId "400238"]
[BlackFideId "2262614"]
[WhiteElo "2450"]
[BlackElo "2307"]

1. c4 {[%clk 00:07:05]} Nf6 {[%clk 00:07:04]} {[%emt 00:00:24]} 2. Nc3 {[%clk
00:07:07]} e6 {[%clk 00:07:03]} 3. d4 {[%clk 00:07:04]} Bb4 {[%clk 00:07:04]} 4.
Nf3 {[%clk 00:07:01]} {[%emt 00:00:03]} Bxc3+ {[%clk 00:06:44]} {[%emt
00:00:18]} 5. bxc3 {[%clk 00:07:03]} {[%emt 00:00:22]} b6 {[%clk 00:06:26]}
{[%emt 00:00:09]} 6. Bg5 {[%clk 00:07:02]} Bb7 {[%clk 00:06:25]} {[%emt
00:00:08]} 7. Nd2 {[%clk 00:07:03]} d6 {[%clk 00:06:17]} {[%emt 00:00:09]} 8.
Qc2 {[%clk 00:07:00]} {[%emt 00:00:06]} Nbd7 {[%clk 00:06:04]} {[%emt
00:00:09]} 9. f3 {[%clk 00:06:58]} {[%emt 00:00:25]} h6 {[%clk 00:06:01]}
{[%emt 00:00:11]} 10. Bh4 {[%clk 00:07:00]} Qe7 {[%clk 00:05:46]} 11. e4 {[%clk
00:07:00]} {[%emt 00:00:04]} e5 {[%clk 00:05:37]} {[%emt 00:00:07]} 12. Bd3
{[%clk 00:06:48]} {[%emt 00:00:37]} O-O-O {[%clk 00:05:11]} {[%emt 00:00:12]}
13. a4 {[%clk 00:06:50]} a5 {[%clk 00:05:13]} 14. O-O {[%clk 00:06:29]} {[%emt
00:00:18]} g5 {[%clk 00:05:02]} {[%emt 00:00:35]} 15. Bf2 {[%clk 00:06:30]} h5
{[%clk 00:05:02]} 16. Nb3 {[%clk 00:06:24]} c5 {[%clk 00:04:39]} {[%emt
00:00:21]} 17. Rab1 {[%clk 00:06:12]} {[%emt 00:00:12]} g4 {[%clk 00:04:19]}
{[%emt 00:00:24]} 18. Bh4 {[%clk 00:05:56]} {[%emt 00:00:38]} Rdg8 {[%clk
00:03:30]} {[%emt 00:00:33]} 19. f4 {[%clk 00:05:23]} {[%emt 00:00:36]} exd4
{[%clk 00:02:55]} {[%emt 00:00:38]} 20. Rbe1 {[%clk 00:05:15]} {[%emt
00:00:33]} g3 {[%clk 00:02:06]} {[%emt 00:00:32]} 21. h3 {[%clk 00:04:54]}
{[%emt 00:00:24]} Qf8 {[%clk 00:01:44]} {[%emt 00:00:25]} 22. e5 {[%clk
00:04:42]} {[%emt 00:00:13]} Ng4 {[%clk 00:00:53]} {[%emt 00:01:29]} 23. hxg4
{[%clk 00:04:00]} {[%emt 00:00:11]} hxg4 {[%clk 00:00:54]} {[%emt 00:00:04]} 24.
Bxg3 {[%clk 00:04:02]} Rh3 {[%clk 00:00:37]} {[%emt 00:00:19]} 25. gxh3 {[%clk
00:03:21]} {[%emt 00:00:47]} gxh3 {[%clk 00:00:39]} {[%emt 00:00:24]} 26. Kh2
{[%clk 00:03:22]} Bg2 {[%clk 00:00:14]} {[%emt 00:00:07]} 27. Qf2 {[%emt
00:00:38]} 1-0